bitfinex/quotes_SOLUSD_20250929
["timestamp","ask_amount","ask_price","bid_price","bid_amount"]
[1759155341564,0.71,211.57,211.49,43.84833502]
[1759155341738,4.72643429,211.58,211.42,14.26559401]
[1759155341739,5.43200011,211.53,211.42,14.26559401]
[1759155342138,0.71,211.52,211.43,39.04]
[1759155342337,0.71,211.53,211.44,39.04]
[1759155342541,5.43200011,211.56,211.44,39.71]
[1759155342766,6.14200011,211.56,211.44,39.71]
[1759155342949,0.71,211.56,211.45,5.39925041]
[1759155343156,0.71,211.6,211.46,14.26559401]
[1759155343359,0.71,211.59,211.47,0.67]
[1759155343544,0.71,211.59,211.48,13.59559401]
[1759155343865,0.71,211.59,211.49,39.71]
[1759155344164,0.71,211.59,211.49,0.67]
[1759155344349,0.71,211.59,211.5,39.02]
[1759155344550,6.14200011,211.59,211.5,39.02]
[1759155344950,4.72634464,211.58,211.5,39.02]
[1759155345152,0.71,211.57,211.5,39.02]
[1759155345667,4.72587292,211.61,211.51,0.67]
[1759155345966,12.52382634,211.62,211.51,0.67]
[1759155345967,5.43548825,211.62,211.51,0.67]
[1759155346363,17.24911645,211.62,211.51,0.67]
[1759155347072,17.24911645,211.62,211.52,4.72768532]
[1759155347942,5.43548825,211.62,211.52,4.72768532]
[1759155348148,0.71,211.66,211.53,0.67]
[1759155348345,5.43200011,211.54,211.42,14.2026682]
[1759155348549,0.71,211.53,211.4,0.67]
[1759155348772,6.14200011,211.52,211.42,39.1]
[1759155348954,26.0,211.57,211.42,39.1]
[1759155348955,0.71,211.51,211.42,39.1]
[1759155349848,4.72813238,211.5,211.42,39.1]
[1759155350048,4.72813238,211.5,211.42,43.82987458]
[1759155350257,4.72813238,211.5,211.42,39.1]
[1759155350473,4.72813238,211.5,211.42,43.82983576]
[1759155351067,16.54846334,211.5,211.42,39.1]
[1759155351258,0.69,211.49,211.42,39.1]
[1759155352062,5.43200011,211.51,211.42,39.1]
[1759155352257,10.85002837,211.51,211.42,39.1]
[1759155352478,10.85002837,211.51,211.43,39.02]
[1759155352981,22.66980048,211.51,211.43,39.02]
[1759155353882,5.43200011,211.5,211.43,39.02]
[1759155354080,10.1602743,211.5,211.43,39.02]
[1759155354390,12.50977211,211.51,211.43,39.02]
[1759155354391,0.69,211.51,211.43,39.02]
[1759155354564,4.72769808,211.52,211.44,0.67]
[1759155354889,0.69,211.51,211.41,48.69729643]
[1759155355079,5.43200011,211.5,211.41,48.02729643]
[1759155355384,16.54691139,211.52,211.31,20.0]
[1759155355385,26.0,211.48,211.4,39.0]
[1759155355607,5.43200011,211.44,211.4,39.0]
[1759155355790,5.43200011,211.46,211.4,39.0]
[1759155356274,16.55237644,211.45,211.4,39.0]
[1759155356784,0.69,211.44,211.4,39.0]
[1759155356977,16.55237644,211.45,211.4,39.0]
[1759155357286,17.24237644,211.45,211.4,39.0]
[1759155357489,0.69,211.44,211.4,39.0]
[1759155357987,16.55237644,211.45,211.4,39.0]
[1759155358483,17.24237644,211.45,211.4,39.0]
[1759155359184,0.69,211.44,211.4,39.0]
[1759155359361,0.69,211.51,211.41,0.67]
[1759155360186,4.72813238,211.5,211.41,5.39994853]
[1759155360395,0.69,211.51,211.41,5.39994853]
[1759155360568,0.69,211.51,211.42,0.67]
[1759155360884,5.43200011,211.53,211.42,0.67]
[1759155360885,0.69,211.53,211.42,0.67]
[1759155361099,16.5453342,211.54,211.42,0.67]
[1759155361472,17.2353342,211.54,211.42,0.67]
[1759155362067,17.2353342,211.54,211.43,4.72969777]
[1759155362274,5.41723834,211.54,211.43,4.72969777]
[1759155362483,5.41658726,211.57,211.45,13.59559401]
[1759155362682,5.41658726,211.57,211.46,39.65]
[1759155362980,5.41658726,211.57,211.47,0.67]
[1759155363293,4.72634826,211.58,211.48,13.59559401]
[1759155363496,23.62534404,211.64,211.48,13.59559401]
[1759155363497,0.69,211.63,211.5,13.59559401]
[1759155363672,4.72433504,211.67,211.5,13.59559401]
[1759155363673,0.69,211.67,211.52,13.59559401]
[1759155363993,0.69,211.67,211.54,13.59559401]
[1759155364165,4.72455825,211.66,211.55,4.72701489]
[1759155364366,0.69,211.67,211.56,0.67]
[1759155364569,6.12200011,211.7,211.57,13.59559401]
[1759155364765,0.69,211.73,211.59,13.59559401]
[1759155365087,14.59985485,211.72,211.61,13.59559401]
[1759155365583,14.59985485,211.72,211.6,39.71]
[1759155365786,14.59985485,211.72,211.61,13.59559401]
[1759155366087,4.72366556,211.7,211.61,18.32122587]
[1759155366303,4.72366556,211.7,211.61,13.59559401]
[1759155366968,9.87659863,211.72,211.63,13.59559401]
[1759155367168,9.87659863,211.72,211.65,19.02759412]
[1759155367398,9.87659863,211.72,211.68,5.43200011]
[1759155367601,9.87659863,211.72,211.69,13.59559401]
[1759155367804,9.87659863,211.72,211.7,39.71]
[1759155367990,9.87659863,211.72,211.66,0.67]
[1759155368176,9.87659863,211.72,211.67,39.04]
[1759155368375,9.87659863,211.72,211.68,0.67]
[1759155368588,9.87659863,211.72,211.69,0.67]
[1759155369197,9.87659863,211.72,211.71,19.02759412]
[1759155369198,9.15659863,211.72,211.71,19.02759412]
[1759155369688,1e-08,211.72,211.71,33.28759412]
[1759155369890,0.1,211.8,211.75,13.59559401]
[1759155370076,0.1,211.8,211.79,5.43200011]
[1759155370278,0.1,211.8,211.75,13.59559401]
[1759155370478,12.48972078,211.87,211.67,14.51940302]
[1759155370479,26.0,211.9,211.76,39.18]
[1759155370688,5.43200011,211.86,211.77,39.18]
[1759155370878,26.0,211.9,211.77,39.18]
[1759155370879,5.43200011,211.88,211.77,39.18]
[1759155371202,5.43200011,211.88,211.69,26.0]
[1759155371203,26.0,211.88,211.69,26.0]
[1759155371404,26.0,211.88,211.75,13.59559401]
[1759155371694,31.43200011,211.89,211.77,13.59559401]
[1759155371992,0.28620716,211.93,211.79,13.59559401]
[1759155372206,10.43684939,211.93,211.81,13.59559401]
[1759155372497,0.69,211.92,211.81,14.26559401]
[1759155372805,0.69,211.91,211.82,39.4]
[1759155372994,0.69,211.91,211.83,39.4]
[1759155373576,5.43200011,211.89,211.83,39.38]
[1759155373883,5.43200011,211.89,211.75,0.67]
[1759155373884,0.69,211.88,211.82,39.38]
[1759155374076,0.69,211.88,211.81,39.38]
[1759155374281,22.61156398,211.87,211.81,39.38]
[1759155375184,17.17956387,211.87,211.81,39.38]
[1759155375573,0.66,211.9,211.81,44.1011755]
[1759155375774,4.71876179,211.92,211.82,0.69]
[1759155375991,0.94620716,211.93,211.83,13.59559401]
[1759155375992,0.28620716,211.93,211.83,13.59559401]
[1759155376208,0.28620716,211.93,211.85,13.59559401]
[1759155376378,0.28620716,211.93,211.87,13.59559401]
[1759155376573,0.28620716,211.93,211.89,13.59559401]
[1759155376995,0.28620716,211.93,211.9,0.69]
[1759155377673,5.00481252,211.93,211.91,39.36]
[1759155377901,0.28620716,211.93,211.91,40.05]
[1759155378151,0.28620716,211.93,211.89,13.59559401]
[1759155378386,0.28620716,211.93,211.9,39.5]
[1759155378598,0.28620716,211.93,211.91,53.09559401]
[1759155378787,0.28620716,211.93,211.92,0.69]
[1759155379194,0.28620716,211.93,211.91,39.5]
[1759155379373,5.00481727,211.93,211.92,39.5]
[1759155379890,5.66481727,211.93,211.92,39.48]
[1759155380101,5.66481727,211.93,211.84,13.59559401]
[1759155380102,17.46116512,211.93,211.8,13.59559401]
[1759155380408,17.46116512,211.93,211.81,38.82]
[1759155380409,5.43200011,211.91,211.81,38.82]
[1759155380610,0.66,211.9,211.81,38.82]
[1759155380901,5.66479234,211.93,211.83,13.59559401]
[1759155381084,0.28620716,211.93,211.84,0.66]
[1759155381284,0.28620716,211.93,211.87,13.59559401]
[1759155381480,0.28620716,211.93,211.89,13.59559401]
[1759155381900,0.28620716,211.93,211.91,13.59559401]
[1759155382211,0.28620716,211.93,211.92,39.54]
[1759155383287,0.28620716,211.93,211.81,43.60563344]
[1759155383288,5.00476226,211.93,211.85,0.66]
[1759155383492,5.00476226,211.93,211.86,20.54]
[1759155383686,5.00476226,211.93,211.87,39.56]
[1759155384300,0.28620716,211.93,211.87,39.56]
[1759155384619,0.28620716,211.93,211.88,39.54]
[1759155384620,0.72,211.92,211.88,39.54]
[1759155384924,0.72,211.91,211.89,39.54]
[1759155385296,10.43676015,211.93,211.89,39.54]
[1759155385604,0.28620716,211.93,211.89,39.54]
[1759155385911,0.28620716,211.93,211.89,40.2]
[1759155386298,0.28620716,211.93,211.9,5.37920717]
[1759155386498,0.28620716,211.93,211.89,39.54]
[1759155386710,0.28620716,211.93,211.9,0.66]
[1759155387006,0.28620716,211.93,211.89,44.25938985]
[1759155387007,0.28620716,211.93,211.92,13.59559401]
[1759155387394,0.28620716,211.93,211.92,14.25559401]
[1759155387589,1.5,212.0,211.96,13.59559401]
[1759155387799,1.5,212.0,211.98,13.59559401]
[1759155388220,1.5,212.0,211.99,14.25559401]
[1759155388387,1.5,212.0,211.99,18.97279765]
[1759155389000,1.5,212.0,211.99,18.31279765]
[1759155389192,1.5,212.0,211.99,13.59559401]
[1759155389410,1.5,212.0,211.99,4.71720364]
[1759155389609,1.5,212.0,211.95,13.59559401]
[1759155389819,1.5,212.0,211.96,39.62]
[1759155389998,1.5,212.0,211.97,13.59559401]
[1759155390420,1.5,212.0,211.98,4.71742617]
[1759155390620,1.5,212.0,211.97,18.3132405]
[1759155390924,1.5,212.0,211.99,13.59559401]
[1759155391114,0.81,212.0,211.99,13.59559401]
[1759155391312,0.05,212.1,211.99,13.59559401]
[1759155391514,0.05,212.1,212.02,13.59559401]
[1759155391736,0.05,212.1,212.03,39.6]
[1759155391911,0.05,212.1,212.07,13.59559401]
[1759155392110,0.05,212.1,212.08,39.58]
[1759155392726,0.05,212.1,212.09,13.59559401]
[1759155394405,0.05,212.1,212.09,23.7425736]
[1759155394924,0.05,212.1,212.09,38.0025736]
[1759155395124,0.05,212.1,212.09,32.47530468]
[1759155395508,0.05,212.1,212.09,39.66]
[1759155395841,0.77,212.1,212.09,39.66]
[1759155396225,0.05,212.1,212.09,39.66]
[1759155396535,0.05,212.1,212.09,53.25559401]
[1759155396843,0.77,212.1,212.05,13.59559401]
[1759155397018,0.05,212.1,212.06,39.68]
[1759155397554,0.72,212.09,212.06,39.68]
[1759155397850,0.05,212.1,212.06,39.18]
[1759155398216,0.05,212.1,212.04,18.85577984]
[1759155398217,0.05,212.1,212.09,39.59559401]
[1759155398550,0.1,212.15,212.14,18.30946221]
[1759155398851,0.72,212.27,212.18,13.59559401]
[1759155399012,0.72,212.27,212.17,26.0]
[1759155399013,0.72,212.27,212.2,13.59559401]
[1759155399633,21.91903558,212.29,212.19,39.88]
[1759155399634,0.72,212.26,212.19,39.88]
[1759155399827,21.91903558,212.29,212.19,39.88]
[1759155399828,0.72,212.25,212.19,39.88]
[1759155400341,0.72,212.24,212.19,39.88]
[1759155400657,0.72,212.24,212.1,5.43200011]
[1759155400658,4.71209122,212.22,212.09,13.59559401]
[1759155400842,0.72,212.26,212.11,13.59559401]
[1759155401136,0.72,212.26,212.17,13.59559401]
[1759155401319,0.72,212.26,212.18,39.84]
[1759155401713,0.72,212.26,212.19,13.59559401]
[1759155401940,14.47567921,212.32,212.19,13.59559401]
[1759155402115,10.48562561,212.32,212.19,27.85559401]
[1759155402614,9.76562561,212.32,212.23,35.90433862]
[1759155402822,9.76562561,212.32,212.28,39.59559401]
[1759155403031,9.76562561,212.32,212.29,13.59559401]
[1759155403237,9.76562561,212.32,212.29,53.81559401]
[1759155403749,9.76562561,212.32,212.21,14.26]
[1759155404035,9.76562561,212.32,212.24,13.59559401]
[1759155404036,10.48562561,212.32,212.24,13.59559401]
[1759155404233,10.48562561,212.32,212.26,13.59559401]
[1759155404817,15.19551657,212.32,212.27,40.18]
[1759155405023,0.72,212.31,212.27,40.18]
[1759155405225,0.72,212.31,212.24,18.30721076]
[1759155405421,0.72,212.31,212.23,13.59559401]
[1759155405628,0.72,212.3,212.18,4.71279564]
[1759155405836,0.72,212.29,212.19,61.80433862]
[1759155406030,9.76562561,212.32,212.19,53.75559401]
[1759155406230,9.76562561,212.32,212.23,8.04874461]
[1759155406426,9.76562561,212.32,212.25,13.59559401]
[1759155406737,9.76562561,212.32,212.26,40.24]
[1759155406932,9.76562561,212.32,212.27,13.59559401]
[1759155407340,15.19552041,212.32,212.27,13.59559401]
[1759155407640,0.72,212.31,212.26,40.24]
[1759155407834,0.72,212.3,212.26,40.24]
[1759155408038,0.72,212.29,212.27,40.26]
[1759155408238,0.72,212.29,212.18,21.64433862]
[1759155408239,0.72,212.4,212.28,40.26]
[1759155408428,0.72,212.4,212.3,13.59559401]
[1759155408747,0.72,212.4,212.32,13.59559401]
[1759155408929,0.72,212.4,212.32,18.30544492]
[1759155409247,5.428103,212.4,212.32,13.59559401]
[1759155409438,5.428103,212.4,212.33,40.3]
[1759155409830,0.72,212.39,212.28,13.59559401]
[1759155410028,0.72,212.39,212.3,13.59559401]
[1759155410350,0.1,212.44,212.3,13.59559401]
[1759155410351,0.72,212.41,212.3,13.59559401]
[1759155410645,0.72,212.41,212.31,16.48532805]
[1759155411224,0.1,212.44,212.35,13.59559401]
[1759155411420,1.19,212.45,212.44,13.59559401]
[1759155411421,0.5,212.45,212.44,13.59559401]
[1759155411655,8.04874461,212.59,212.45,13.59559401]
[1759155411834,0.69,212.54,212.45,13.59559401]
[1759155412231,59.96426722,212.69,212.45,13.59559401]
[1759155412538,8.04874461,212.52,212.46,40.56]
[1759155412733,4.70566091,212.51,212.46,40.56]
[1759155413250,4.70566091,212.51,212.34,33.96]
[1759155413251,8.04874461,212.49,212.34,33.96]
[1759155413455,8.04874461,212.46,212.37,40.56]
[1759155413750,16.46981318,212.51,212.37,40.56]
[1759155413751,8.04874461,212.5,212.38,13.59559401]
[1759155413925,8.04874461,212.5,212.37,40.56]
[1759155414121,16.46981318,212.51,212.34,38.66939857]
[1759155414122,8.04874461,212.47,212.34,33.96]
[1759155414328,8.04874461,212.43,212.35,40.58]
[1759155414535,8.04874461,212.4,212.35,40.58]
[1759155414756,8.04874461,212.4,212.25,11.77830708]
[1759155414757,5.39834869,212.39,212.22,4.71209122]
[1759155414935,8.73874461,212.38,212.23,40.6]
[1759155415132,8.04874461,212.35,212.23,40.6]
[1759155415382,0.69,212.34,212.23,40.6]
[1759155415526,40.02074569,212.39,212.23,40.6]
[1759155415527,8.04874461,212.32,212.23,40.6]
[1759155415733,8.04874461,212.29,212.23,40.6]
[1759155416044,0.69,212.28,212.23,40.6]
[1759155416438,26.0,212.31,212.16,33.96]
[1759155416439,8.04874461,212.26,212.16,33.96]
[1759155416643,0.69,212.27,212.06,0.5]
[1759155416644,16.49465101,212.19,212.06,0.5]
[1759155416935,0.69,212.22,212.1,40.62]
[1759155417139,8.73874461,212.26,212.11,0.5]
[1759155417330,4.7114794,212.25,212.12,13.59559401]
[1759155417639,8.04874461,212.2,212.1,40.62]
[1759155417830,0.69,212.19,212.1,40.62]
[1759155418032,8.04874461,212.17,212.1,40.62]
[1759155418333,0.69,212.16,212.1,40.62]
[1759155418729,4.713646,212.15,212.1,40.62]
[1759155418931,0.69,212.14,212.1,40.62]
[1759155419132,0.69,212.13,212.0,5.21683307]
[1759155419446,0.69,212.12,212.01,40.62]
[1759155419650,8.04874461,212.1,212.01,40.62]
[1759155419872,0.69,212.11,212.01,40.62]
[1759155420352,0.69,212.1,211.98,33.96]
[1759155420564,0.69,212.1,211.85,36.97260362]
[1759155420565,8.04874461,212.02,211.86,4.72009817]
[1759155420878,8.04874461,212.02,211.85,0.5]
[1759155420879,8.04874461,211.99,211.87,35.52]
[1759155421073,0.69,211.98,211.87,35.52]
[1759155421252,16.50865524,212.01,211.87,35.52]
[1759155421253,8.04874461,211.96,211.87,35.52]
[1759155421677,8.04874461,211.96,211.84,0.2]
[1759155421678,8.04874461,211.9,211.84,0.2]
[1759155421885,0.69,211.95,211.84,0.2]
[1759155422184,0.69,212.0,211.84,13.4691751]
[1759155422479,8.73874461,211.99,211.85,13.59559401]
[1759155422769,8.73874461,211.99,211.84,4.92043049]
[1759155422770,8.73874461,211.99,211.87,4.71987539]
[1759155422986,0.69,211.99,211.88,13.59559401]
[1759155423166,8.73874461,212.03,211.9,13.59559401]
[1759155423477,39.96,212.15,211.87,4.71987539]
[1759155423478,8.73874461,212.06,211.92,13.59559401]
[1759155423692,0.69,212.05,211.92,13.59559401]
[1759155423855,8.04874461,212.08,211.94,13.59559401]
[1759155424250,8.04874461,212.12,211.96,21.64433862]
[1759155424465,8.73874461,212.13,211.98,13.59559401]
[1759155424671,0.69,212.13,212.0,13.59559401]
[1759155424989,8.04874461,212.17,211.99,8.54874461]
[1759155424990,8.04874461,212.17,212.02,13.59559401]
[1759155425181,0.69,212.15,212.03,40.66]
[1759155425674,0.69,212.15,212.01,31.21675864]
[1759155425875,0.69,212.14,212.04,40.66]
[1759155426050,8.73874461,212.14,212.04,40.66]
[1759155426773,0.69,212.13,212.04,40.66]
[1759155427000,8.04874461,212.11,211.98,45.35734589]
[1759155427159,8.04874461,212.11,211.99,0.5]
[1759155427674,8.04874461,212.08,211.96,4.71774661]
[1759155427876,8.04874461,212.05,211.97,38.38]
[1759155428184,0.69,212.07,211.97,38.38]
[1759155428378,8.73874461,212.06,211.97,38.38]
[1759155428581,8.73874461,212.06,211.92,4.71857947]
[1759155428795,8.73874461,212.06,211.94,4.7183165]
[1759155428964,26.0,212.11,211.95,41.1]
[1759155428965,8.73874461,212.09,211.95,41.1]
[1759155429164,0.69,212.09,211.96,13.59559401]
[1759155429371,11.78410919,212.16,211.98,13.59559401]
[1759155429372,8.73874461,212.13,211.98,13.59559401]
[1759155429579,0.69,212.16,212.01,26.0]
[1759155429881,8.04874461,212.14,212.02,40.58]
[1759155430082,8.04874461,212.14,212.03,13.59559401]
[1759155430287,8.73874461,212.17,212.04,0.5]
[1759155430597,8.73874461,212.2,212.05,13.59559401]
[1759155430774,4.71342383,212.16,212.05,4.71586889]
[1759155430976,0.69,212.15,212.05,4.71586889]
[1759155431181,8.04874461,212.14,212.03,4.71629602]
[1759155431490,8.04874461,212.11,211.97,0.5]
[1759155431701,8.04874461,212.08,211.97,40.58]
[1759155431993,8.73874461,212.07,211.97,40.58]
[1759155432175,0.69,212.11,211.98,0.5]
[1759155432483,0.69,212.14,211.99,13.59559401]
[1759155432691,0.69,212.14,212.01,13.59559401]
[1759155433075,5.40409041,212.13,212.01,4.71675864]
[1759155433266,8.04874461,212.12,212.01,4.71675864]
[1759155433466,0.69,212.11,211.99,4.71708648]
[1759155433674,16.49931645,212.13,211.97,40.58]
[1759155433675,8.04874461,212.09,211.97,40.58]
[1759155433898,0.69,212.08,211.98,40.6]
[1759155434469,16.49931645,212.13,211.98,40.6]
[1759155434668,8.04874461,212.06,211.98,40.6]
[1759155434869,8.04874461,212.0,211.86,4.72009817]
[1759155435083,8.04874461,211.95,211.86,4.72009817]
[1759155435287,4.71742617,211.98,211.86,4.72009817]
[1759155435469,8.04874461,211.96,211.86,4.72009817]
[1759155435666,8.04874461,211.96,211.85,0.5]
[1759155435667,8.04874461,211.96,211.85,5.22026522]
[1759155435884,8.04874461,211.99,211.85,17.02106767]
[1759155436393,8.04874461,211.96,211.84,4.9205086]
[1759155436691,16.51027099,211.99,211.84,4.9205086]
[1759155436692,8.04874461,211.93,211.84,0.2]
[1759155436876,8.04874461,211.95,211.84,16.72187205]
[1759155437190,8.04874461,211.95,211.84,17.22187205]
[1759155437576,4.71816236,211.95,211.84,5.42051254]
[1759155437786,4.71816236,211.95,211.84,4.92051254]
[1759155437787,12.76690697,211.95,211.84,4.92051254]
[1759155438090,0.71,211.94,211.84,0.2]
[1759155438398,8.04874461,211.92,211.84,0.2]
[1759155438592,0.71,211.91,211.84,0.2]
[1759155438800,8.04874461,211.89,211.84,0.2]
[1759155439001,0.71,211.88,211.84,0.2]
[1759155439178,8.75874461,211.87,211.84,0.2]
[1759155439376,5.43005562,211.87,211.84,0.2]
[1759155439576,0.71,211.86,211.84,0.2]
[1759155439788,12.76880023,211.87,211.84,0.2]
[1759155439789,0.71,211.85,211.84,0.2]
[1759155440169,12.76880023,211.87,211.84,0.2]
[1759155440377,8.04874461,211.9,211.84,0.2]
[1759155440576,8.75874461,211.93,211.84,4.92049164]
[1759155440786,13.47734116,211.93,211.84,0.2]
[1759155440989,25.27368901,211.93,211.84,0.2]
[1759155441284,12.76802525,211.9,211.84,0.2]
[1759155441680,0.7,211.89,211.84,0.2]
[1759155441906,8.04874461,211.87,211.84,0.2]
[1759155442401,0.7,211.86,211.84,0.2]
[1759155442612,0.7,211.85,211.84,0.2]
[1759155442977,16.51729857,211.9,211.84,0.2]
[1759155443179,8.04874461,211.88,211.84,0.2]
[1759155443408,8.04874461,211.91,211.84,0.2]
[1759155443570,13.46787169,211.91,211.84,0.2]
[1759155443771,8.04874461,211.88,211.84,0.2]
[1759155444005,5.41912708,211.91,211.84,0.2]
[1759155444006,17.21658826,211.91,211.84,0.2]
[1759155444178,8.04874461,211.86,211.84,0.2]
[1759155444379,0.7,211.9,211.84,0.2]
[1759155445004,4.71912708,211.91,211.84,0.2]
[1759155445383,5.41861344,211.93,211.84,4.92051017]
[1759155445693,0.7,211.92,211.84,0.2]
[1759155446418,34.04874461,211.9,211.84,0.2]
[1759155446707,8.04874461,211.87,211.84,0.2]
[1759155447074,0.7,211.86,211.84,0.2]
[1759155447391,0.7,211.85,211.84,0.2]
[1759155447595,4.71991552,211.87,211.84,0.2]
[1759155447980,0.7,211.91,211.84,0.2]
[1759155449500,4.71920717,211.9,211.84,0.2]
[1759155449691,0.7,211.89,211.84,0.2]
[1759155449902,0.7,211.88,211.84,0.2]
[1759155450208,8.04874461,211.86,211.84,0.2]
[1759155450709,0.7,211.85,211.84,0.2]
[1759155451396,5.42032098,211.85,211.84,0.2]
[1759155451575,13.46906559,211.85,211.84,0.2]
[1759155452199,8.04874461,211.8,211.76,0.2]
[1759155452602,0.7,211.79,211.76,0.2]
[1759155453407,4.72188119,211.78,211.76,0.2]
[1759155453590,0.7,211.77,211.76,0.2]
[1759155453902,8.74874461,211.77,211.76,0.2]
[1759155454113,8.74874461,211.77,211.76,1e-08]
[1759155454488,0.7,211.77,211.76,1e-08]
[1759155454690,8.74874461,211.77,211.76,1e-08]
[1759155455291,0.7,211.77,211.76,1e-08]
[1759155455485,13.47084877,211.77,211.76,1e-08]
[1759155456000,4.72210416,211.77,211.76,1e-08]
[1759155456310,5.42210416,211.77,211.76,1e-08]
[1759155456508,13.47084877,211.77,211.76,1e-08]
[1759155458209,12.77084877,211.77,211.76,1e-08]
[1759155458386,13.47084877,211.77,211.76,1e-08]
[1759155459208,12.77084877,211.77,211.76,1e-08]
[1759155459402,13.47084877,211.77,211.76,1e-08]
[1759155462103,54.15084877,211.77,211.76,1e-08]
[1759155462409,70.55025945,211.77,211.76,1e-08]
[1759155462790,26.0,211.73,211.62,0.2]
[1759155462990,129.57656155,211.77,211.62,0.2]
[1759155462991,5.42628064,211.66,211.62,0.2]
[1759155463201,26.0,211.7,211.62,0.2]
[1759155463509,5.42628064,211.7,211.63,0.5]
[1759155463899,5.42628064,211.7,211.62,0.2]
[1759155465195,5.42628064,211.67,211.62,0.2]
[1759155465399,0.7,211.7,211.62,0.2]
[1759155465721,4.72433504,211.67,211.62,0.2]
[1759155466116,17.23517266,211.67,211.62,0.2]
[1759155466421,5.42628064,211.65,211.62,0.2]
[1759155466793,0.7,211.64,211.62,0.2]
[1759155466996,0.7,211.63,211.62,0.2]
[1759155467218,0.7,211.63,211.51,18.52]
[1759155467427,16.53517266,211.67,211.51,18.52]
[1759155467428,5.42628064,211.58,211.51,18.52]
[1759155467721,5.42628064,211.61,211.51,23.24785888]
[1759155468094,21.9661417,211.61,211.51,18.52]
[1759155468499,26.0,211.58,211.37,5.42628064]
[1759155468809,5.42628064,211.55,211.47,0.5]
[1759155469808,10.1534463,211.55,211.47,0.5]
[1759155470013,21.97098352,211.55,211.47,0.5]
[1759155470519,21.97098352,211.55,211.43,0.5]
[1759155470730,22.67098352,211.55,211.43,0.5]
[1759155471218,5.42628064,211.52,211.43,0.5]
[1759155471403,5.42628064,211.52,211.41,4.73014521]
[1759155471798,4.72790884,211.51,211.4,0.5]
[1759155471997,5.42628064,211.49,211.39,0.2]
[1759155472201,17.25768095,211.51,211.39,0.2]
[1759155472202,5.42628064,211.46,211.39,0.2]
[1759155472403,22.68396159,211.51,211.39,0.2]
[1759155472404,5.42628064,211.43,211.39,0.2]
[1759155472910,6.13628064,211.46,211.39,0.2]
[1759155473115,5.42628064,211.43,211.39,0.2]
[1759155473718,4.72992148,211.42,211.39,0.2]
[1759155474006,5.43992148,211.42,211.39,0.2]
[1759155474208,0.71,211.41,211.39,0.2]
[1759155474401,10.1560043,211.43,211.39,0.2]
[1759155474596,0.71,211.42,211.39,0.2]
[1759155474820,0.71,211.41,211.39,0.2]
[1759155475031,5.42628064,211.4,211.39,0.2]
[1759155475210,6.13628064,211.42,211.39,0.2]
[1759155475403,0.71,211.42,211.39,0.2]
[1759155475598,4.72941794,211.45,211.39,0.2]
[1759155475796,10.86533278,211.46,211.39,0.2]
[1759155476003,5.42628064,211.49,211.4,5.23036896]
[1759155476197,0.71,211.5,211.4,5.23036896]
[1759155476400,5.42628064,211.52,211.4,5.23036896]
[1759155476602,5.42628064,211.52,211.41,0.5]
[1759155477220,0.71,211.51,211.41,0.5]
[1759155477528,0.71,211.51,211.39,4.93051083]
[1759155477707,0.71,211.51,211.39,0.2]
[1759155477708,5.42628064,211.46,211.39,0.2]
[1759155477905,5.43925041,211.45,211.39,0.2]
[1759155478228,10.86553105,211.45,211.39,0.2]
[1759155478427,22.68865708,211.45,211.39,0.2]
[1759155479030,17.26237644,211.45,211.39,0.2]
[1759155479201,22.68865708,211.45,211.39,0.2]
[1759155479403,10.86553105,211.45,211.39,0.2]
[1759155479628,4.72903053,211.46,211.39,0.2]